Cogmind - Beta 11.1 @@@ ROGUE MODE // 2022.05.21 @ 22:39:23 Player: btmk16 Result: Destroyed by H-88 Terminator with KE Penetrator Performance ------------- Evolutions (8) 4000 Regions Visited (15) 3000 Robots Destroyed (154) 770 Value Destroyed (6598) 6598 Prototype IDs (12) 240 Alien Tech Used (1) 200 Bonus (1226) 1226 TOTAL SCORE: 16034 Bonus ------- High Alert Combat Kills 239 Follower Combat Kills 74 Entered DSFs 500 Scanned by Researcher 500 Friendly Fire -87 Cogmind --------- Core Integrity 0/1450 Matter 300/300 Energy 69/100 System Corruption 1% Temperature Cool (0) Movement Core (200) Ox3 Location -2/Quarantine Parts ------- > --- POWER (2) -------- (None) > --- PROPULSION (7) --- Improved Diametric Drive Experimental Q-thruster > --- UTILITY (10) ----- Experimental Coolant Injector > --- WEAPON (4) ------- Makeshift Spear Enhanced Force Lance > --- INVENTORY (5) ---- Drone Bay (2/2) Peak State ------------ > --- POWER ------------ Micro Antimatter Reactor > --- PROPULSION ------- Impulse Thruster Array Impulse Thruster Array Experimental Q-thruster > --- UTILITY ---------- Advanced Heat Sink Experimental Coolant Injector Improved Sensor Array Advanced Targeting Computer Nanoactuators Nanoactuators Advanced Transmission Jammer Advanced Transmission Jammer Reaction Control System Advanced Reaction Control System > --- WEAPON ----------- Heavy Rocket Launcher Chainsword Enhanced Force Lance Enhanced Force Lance > --- INVENTORY -------- Micro Antimatter Reactor Drone Bay Makeshift Spear Enhanced Force Lance [Rating: 134] Favorites ----------- Power Improved Deuterium Engine Engine Improved Deuterium Engine Power Core Micro Nuclear Core Reactor Particle Reactor Propulsion Enhanced Flexi-carbon Leg Treads Light Treads Leg Enhanced Flexi-carbon Leg Wheel Wheel Hover Unit Improved Antigrav System Flight Unit Impulse Thruster Array Utility Improved Heat Sink Device Improved Heat Sink Storage Huge Storage Unit Processor Signal Interpreter Hackware Hacking Suite Protection Hardened Medium Armor Plating Weapon Improved Assault Rifle Energy Gun Enhanced Quantum Rifle Energy Cannon Heavy Ion Cannon Ballistic Gun Improved Assault Rifle Ballistic Cannon Improved Light Cannon Launcher Grenade Launcher Impact Weapon Maul Slashing Weapon Chainsword Piercing Weapon Enhanced Force Lance Build | -11 -10 -9 -8 -7 -6 -6 -6 -5 -5 -5 -4 -4 -3 -2 -2 ------- Run | Scr Mat Mat Mat Fac Fac Low Low Fac Upp Upp Fac DSF Res Res Qua Slots Evolved 16 | . . 2 2 2 2 . . 2 . . 2 . 2 2 . Power 1 | . . . . . . . . . . . . . . 1 . Propulsion 5 | . . 1 1 . 1 . . . . . 1 . . 1 . Utility 8 | . . 1 1 1 1 . . 2 . . 1 . 1 . . Weapon 2 | . . . . 1 . . . . . . . . 1 . . Parts Attached 162 | . 10 8 6 22 8 9 1 17 2 . 1 6 43 20 9 Power 14 | . 1 . 1 2 1 . . 2 . . . 1 2 3 1 Engine 7 | . 1 . 1 1 1 . . 2 . . . 1 . . . Core 1 | . . . . 1 . . . . . . . . . . . Reactor 6 | . . . . . . . . . . . . . 2 3 1 Propulsion 50 | . 4 3 1 7 2 3 . 7 . . . 4 10 7 2 Treads 19 | . . 2 1 4 2 1 . . . . . 4 3 . 2 Leg 10 | . 2 . . . . 1 . 7 . . . . . . . Wheel 8 | . 2 1 . 3 . 1 . . . . . . 1 . . Hover 2 | . . . . . . . . . . . . . . 2 . Flight 11 | . . . . . . . . . . . . . 6 5 . Utility 56 | . 2 3 2 7 2 2 1 5 2 . 1 1 21 6 1 Device 36 | . 1 1 1 2 1 1 . 4 2 . . . 17 5 1 Storage 3 | . 1 . . . . 1 . . . . . . 1 . . Processor 6 | . . 1 . 1 . . . . . . 1 . 2 1 . Hackware 3 | . . . . 1 1 . 1 . . . . . . . . Protection 8 | . . 1 1 3 . . . 1 . . . 1 1 . . Artifact . | . . . . . . . . . . . . . . . . Weapon 42 | . 3 2 2 6 3 4 . 3 . . . . 10 4 5 Energy Gun 3 | . 1 . . . . . . . . . . . 1 . 1 Energy Cannon 5 | . . . . 1 1 . . 1 . . . . 2 . . Ballistic Gun 7 | . . 1 . 2 1 1 . . . . . . 2 . . Ballistic Cannon 10 | . 2 1 1 2 . 1 . 2 . . . . 1 . . Launcher 4 | . . . . . . 1 . . . . . . 1 2 . Special Weapon . | . . . . . . . . . . . . . . . . Impact Weapon 1 | . . . 1 . . . . . . . . . . . . Slashing Weapon 7 | . . . . 1 1 1 . . . . . . 1 1 2 Piercing Weapon 5 | . . . . . . . . . . . . . 2 1 2 Special Melee Weapon . | . . . . . . . . . . . . . . . . Unidentified Prototypes 8 | . . 1 . . . . . 2 . . . . 1 3 1 Corrupted Parts 2 | . . . . . . . . . . . . . 2 . . System Corruption 4 | . . . . . . . . . . . . . 4 . . Parts Lost 72 | . . 1 4 6 3 5 . 2 . . . 12 11 21 7 Power 8 | . . . 2 . . . . . . . . 2 . 3 1 Propulsion 25 | . . . . 4 3 2 . 1 . . . 1 6 6 2 Utility 25 | . . 1 . 2 . 1 . 1 . . . 7 3 9 1 Weapon 14 | . . . 2 . . 2 . . . . . 2 2 3 3 Highest Loss Streak 12 | . . 1 2 2 3 2 . 2 . . . 12 2 11 7 To Critical Strikes 2 | . . . . . . . . . . . . . . 1 1 Average Slot Usage (%) 86 | . 91 99 98 97 89 81 86 91 94 94 84 66 65 59 38 Engine 5 | . 14 11 7 3 6 6 6 5 5 5 5 4 . . . Treads 8 | . . 11 18 14 18 10 6 3 . . . 6 8 . 7 Leg 5 | . 16 . . . . 1 6 16 29 29 26 15 . . . Wheel 7 | . 11 22 18 14 4 3 6 3 . . . . . . . Flight 1 | . . . . . . . . . . . . . 4 13 8 Device 14 | . 6 12 9 3 13 18 20 22 23 23 21 14 14 23 7 Storage 6 | . 14 11 9 7 6 6 6 5 5 5 5 5 3 . . Processor 3 | . . 6 9 7 . . . . . . . 5 9 3 . Hackware 7 | . . . . 6 13 13 13 11 11 11 10 6 3 . . Protection 4 | . . 3 9 10 6 1 . 4 5 5 5 2 2 . . Energy Cannon 2 | . . . . 1 2 6 6 5 5 5 5 4 2 . . Ballistic Gun 5 | . . . . 11 13 11 6 2 . . . . 2 . . Ballistic Cannon 6 | . 22 22 16 8 1 . . 2 5 5 5 2 2 . . Naked Turns 3 | . . . . . . . . . . . . . 3 . . Heaviest Build 145 | 13 94 97 104 116 114 114 107 128 128 128 128 128 145 42 45 Greatest Support 210 | 20 20 22 22 40 40 68 16 140 140 140 140 210 210 50 135 Greatest Overweight (x) 11 | . 4 4 4 9 11 6 6 7 . . . 1 1 2 3 Average Overweight (x) 2 | . 1 4 4 4 9 4 6 3 . . . . . . . Largest Inventory Capacity 25 | . 25 25 25 25 25 25 25 25 25 25 25 25 25 5 5 Average Capacity 22 | . 15 25 25 25 25 25 25 25 25 25 25 25 20 5 5 Most Carried 25 | . 14 25 24 25 24 25 25 25 25 25 25 25 25 5 5 Average Carried 20 | . 8 20 23 24 22 23 24 24 25 24 24 23 17 4 3 Final Capacity 25 | 8 25 25 25 25 25 25 25 25 25 25 25 25 5 5 5 Final Carried 25 | 6 14 25 24 24 23 25 25 25 25 25 24 23 5 5 1 Class Distribution -------------------- 28% | Mutant 20% | Hacker-Tank 15% | Tank 13% | Hacker-Mutant 12% | Hacker-Skirmisher 3% | Scavenger-Gunner Dominant Class ---------------- Mutant | -10/Materials Mutant | -9/Materials Mutant | -8/Materials Tank | -7/Factory Hacker-Tank | -6/Factory Hacker-Skirmisher | -6/Lower Caves Hacker-Mutant | -6/Lower Caves Hacker-Tank | -5/Factory Hacker-Tank | -5/Upper Caves Hacker-Tank | -5/Upper Caves Hacker-Tank | -4/Factory Gunner | -4/DSF Scavenger-Gunner | -3/Research Sprinter | -2/Research Mutant | -2/Quarantine Resources | -11 -10 -9 -8 -7 -6 -6 -6 -5 -5 -5 -4 -4 -3 -2 -2 ----------- Run | Scr Mat Mat Mat Fac Fac Low Low Fac Upp Upp Fac DSF Res Res Qua Matter Collected 4979 | 200 360 411 372 1221 217 297 . 296 202 10 . 51 1096 113 133 Remotely 44 | . . . . . . . . . . . . . 44 . . Salvage Created 6468 | . 465 754 326 995 336 322 . 333 416 . . 116 1250 621 534 Parts 336 | . 17 45 31 53 14 15 . 23 17 . . 1 58 40 22 Haulers Intercepted 8 | . 1 2 1 1 . . . . . . . . 2 1 . Recyclers Shooed 2 | . . . . 2 . . . . . . . . . . . Parts Field Recycled . | . . . . . . . . . . . . . . . . Retrieved Matter . | . . . . . . . . . . . . . . . . Parts Self-Destructed 42 | . . . . . . 13 3 . 26 . . . . . . Prevented . | . . . . . . . . . . . . . . . . Kills | -11 -10 -9 -8 -7 -6 -6 -6 -5 -5 -5 -4 -4 -3 -2 -2 ------- Run | Scr Mat Mat Mat Fac Fac Low Low Fac Upp Upp Fac DSF Res Res Qua Combat Hostiles Destroyed 117 | . 12 18 8 20 5 5 . 6 8 . . 2 18 10 5 Melee 13 | . . . . . . . . . . . . . 1 7 5 Guns 26 | . 3 . . 8 3 2 . . . . . . 10 . . Cannons 74 | . 9 18 8 12 2 3 . 5 8 . . 2 7 . . AOE 4 | . . . . . . . . 1 . . . . . 3 . Classes Destroyed 18 | . 2 7 2 2 1 2 . . . . . 1 . . 1 Worker 7 | . . . . 2 . . . 2 . . . . 2 . 1 Builder 8 | . . 1 3 2 . . . 1 . . . . . 1 . Tunneler 2 | . . 1 . . . . . . . . . . . 1 . Hauler 8 | . 1 2 1 1 . . . . . . . . 2 1 . Recycler 4 | . . 1 . 2 . . . 1 . . . . . . . Minesweeper 1 | . . . . . . 1 . . . . . . . . . Operator 3 | . . . 1 1 . . . . . . . . . 1 . Watcher 3 | . . 2 . 1 . . . . . . . . . . . Swarmer 17 | . . 2 . 4 . . . . 2 . . . 3 6 . Grunt 61 | . 12 10 6 10 3 5 . . 5 . . . 5 1 4 Brawler 1 | . . 1 . . . . . . . . . . . . . Duelist 2 | . . . 1 1 . . . . . . . . . . . Researcher 1 | . . . . . . . . . . . . . . . 1 Sentry 17 | . . 5 1 2 1 . . 2 1 . . . 4 1 . Specialist 2 | . . . . . . . . . . . . 2 . . . Hunter 2 | . . . . . 1 . . . . . . . . . 1 Programmer 15 | . . . . 3 . . . 4 . . . . 6 2 . Samaritan 1 | . . . . . . 1 . . . . . . . . . Best Kill Streak 7 | . 3 5 5 7 3 3 . 6 2 . . 2 5 5 5 Combat Bots Only 7 | . 3 5 4 7 3 3 . 2 2 . . 2 4 4 4 Max Kills in Single Turn 4 | . 2 2 2 2 1 1 . 4 2 . . 1 1 2 1 Gunslinging . | . . . . . . . . . . . . . . . . Exploded 2 | . . . . . . . . 1 . . . . . 2 . Melee 1 | . . . . . . . . . . . . . 1 1 1 Uniques/NPCs Destroyed . | . . . . . . . . . . . . . . . . Combat | -11 -10 -9 -8 -7 -6 -6 -6 -5 -5 -5 -4 -4 -3 -2 -2 -------- Run | Scr Mat Mat Mat Fac Fac Low Low Fac Upp Upp Fac DSF Res Res Qua Damage Taken 15787 | . 245 410 702 1568 927 785 31 725 194 . . 2600 2397 2490 2713 Core 2360 | . 44 36 95 108 129 134 16 65 . . . 152 119 1059 403 Absorbed by Shields . | . . . . . . . . . . . . . . . . Reduced by Siege Mode 89 | . . . . . . . . . . . . 22 67 . . Regen/Repaired (Parts) 298 | . . . . . . . . 194 . . . . . . 104 Core Remaining (%) 86 | 100 82 91 82 84 . . 67 . . 93 . 86 90 . . Volleys Fired 369 | . 28 56 63 69 24 30 . 16 13 . . 12 53 4 1 Largest 4 | . 2 2 2 3 3 3 . 2 2 . . 2 4 1 1 Hottest 272 | . 90 78 78 132 111 132 . 125 125 . . 125 272 39 65 Shots Fired 879 | . 56 112 125 200 72 80 . 32 27 . . 24 145 4 2 Gun 276 | . 16 . . 111 48 42 . . . . . . 57 . 2 Cannon 595 | . 40 112 125 89 24 35 . 32 27 . . 24 87 . . Launcher 8 | . . . . . . 3 . . . . . . 1 4 . Special . | . . . . . . . . . . . . . . . . Kinetic 708 | . 40 112 125 195 48 50 . 16 14 . . 12 96 . . Thermal 126 | . 16 . . 5 24 27 . 16 13 . . 12 11 . 2 Explosive 8 | . . . . . . 3 . . . . . . 1 4 . Electromagnetic 37 | . . . . . . . . . . . . . 37 . . Robot Hit Streak 30 | . 15 9 8 17 27 30 . 5 7 . . 11 19 2 . Robot Miss Streak 10 | . 5 8 10 8 3 3 . 3 2 . . 3 4 1 2 Penetration Max 1 | . . . . . . . . . . . . . 1 . . Secondary Targets . | . . . . . . . . . . . . . . . . Shots Hit Robots 598 | . 34 56 37 140 54 54 . 24 15 . . 20 102 38 24 Core Hits 300 | . 16 22 19 79 16 21 . 18 17 . . 8 50 23 11 Critical Kills 6 | . . . . . 1 . . . . . . . 5 . . Critical Parts Destroyed 4 | . . . . . . . . . . . . . 4 . . Critical Strikes 47 | . 1 6 3 1 1 . . . 1 . . 1 22 5 6 Burn 1 | . 1 . . . . . . . . . . . . . . Destroy 11 | . . . . . 1 . . . . . . . 10 . . Blast 19 | . . 6 3 1 . . . . 1 . . 1 7 . . Corrupt 5 | . . . . . . . . . . . . . 5 . . Sever 3 | . . . . . . . . . . . . . . . 3 Impale 8 | . . . . . . . . . . . . . . 5 3 Melee Attacks 132 | . . . 1 2 6 2 . . . . . . 16 74 31 Impact 2 | . . . 1 1 . . . . . . . . . . . Slashing 46 | . . . . 1 6 2 . . . . . . 2 18 17 Piercing 84 | . . . . . . . . . . . . . 14 56 14 Sneak Attacks 11 | . . . . . . . . . . . . . 3 7 1 Combat Hostiles 2 | . . . . . . . . . . . . . 2 . . Follow-up Attacks 15 | . . . . . . . . . . . . . 2 8 5 Damage Inflicted 18176 | . 686 1419 861 2350 1006 1085 . 1575 775 . . 911 3176 2732 1600 Guns 3255 | . 198 . . 1197 522 509 . . . . . . 829 . . Cannons 9520 | . 474 1419 861 1137 484 576 . 975 775 . . 911 1908 . . Explosions 1213 | . . . . . . . . 600 . . . . . 613 . Melee 4158 | . . . . . . . . . . . . . 439 2119 1600 Ramming 30 | . 14 . . 16 . . . . . . . . . . . Kinetic 9858 | . 474 1419 861 2270 522 625 . 667 615 . . 640 1765 . . Thermal 2227 | . 198 . . 64 484 460 . 450 160 . . 271 140 . . Explosive 1071 | . . . . . . . . 458 . . . . . 613 . Electromagnetic 832 | . . . . . . . . . . . . . 832 . . Impact . | . . . . . . . . . . . . . . . . Slashing 1907 | . . . . . . . . . . . . . 120 455 1332 Piercing 2251 | . . . . . . . . . . . . . 319 1664 268 Highest Corruption 9 | . . 1 9 1 . . . 6 6 6 . 4 9 1 1 Average Corruption 3 | . . 1 9 1 . . . 4 6 6 . 3 5 1 1 Corruption Purged . | . . . . . . . . . . . . . . . . Corruption Blocked . | . . . . . . . . . . . . . . . . Effects 84 | . . 1 4 6 . . . 19 23 6 . . 22 . 3 Message Errors 23 | . . . . . . . . 4 10 3 . . 6 . . Matter Fused 17 | . . . 3 2 . . . 4 4 3 . . 1 . . Heat Flow Errors 8 | . . . . 2 . . . 2 1 . . . 3 . . Energy Discharges 11 | . . 1 1 . . . . 3 4 . . . 2 . . Parts Rejected 2 | . . . . . . . . 1 1 . . . . . . Data Loss (minor) 10 | . . . . 1 . . . 2 . . . . 7 . . Data Loss (major) 2 | . . . . . . . . 2 . . . . . . . Misfires 3 | . . . . 1 . . . . 1 . . . . . 1 Alerts 5 | . . . . . . . . 1 2 . . . . . 2 Weapon Failures 3 | . . . . . . . . . . . . . 3 . . Overload Shots . | . . . . . . . . . . . . . . . . Overflow Damage 711 | . . 31 19 1 . 32 . 32 6 . . . 112 452 26 Projectiles 142 | . . 31 19 1 . 32 . 13 6 . . . 40 . . Explosions 59 | . . . . . . . . 19 . . . . . 40 . Melee 510 | . . . . . . . . . . . . . 72 412 26 Knockbacks 75 | . . 7 7 37 . 3 . 7 4 . . 3 7 . . Impact . | . . . . . . . . . . . . . . . . Kinetic 71 | . . 7 7 33 . 3 . 7 4 . . 3 7 . . Secondary 4 | . . . . 4 . . . . . . . . . . . Self-Inflicted Damage 32 | . . . . 7 . . . . . . . . . 25 . Shots 1 | . . . . . . . . . . . . . . 1 . Rammed 3 | . . . . 3 . . . . . . . . . . . Targets Rammed 4 | . 1 . . 3 . . . . . . . . . . . Kicked 1 | . 1 . . . . . . . . . . . . . . Crushed . | . . . . . . . . . . . . . . . . Highest Temperature 459 | . 288 22 8 291 5 13 . 215 147 . . . 459 262 . Average Temperature 99 | . 82 10 4 84 4 6 . 63 70 . . . 158 134 . Received Heat Transfer 2794 | . 132 204 225 450 267 393 . 63 51 . . 472 303 180 54 Effects 9 | . . . . 3 . . . . . . . . 6 . . Shutdowns 1 | . . . . . . . . . . . . . 1 . . Interference 7 | . . . . 3 . . . . . . . . 4 . . Short Circuit 1 | . . . . . . . . . . . . . 1 . . Siege Activations 3 | . . . . . . . . . . . . 1 2 . . Total Turns 37 | . . . . . . . . . . . . 8 29 . . Longest Duration 21 | . . . . . . . . . . . . 8 21 . . Robots Corrupted . | . . . . . . . . . . . . . . . . Combat Hostiles . | . . . . . . . . . . . . . . . . Parts Fried 3 | . . . . . . . . . . . . . 3 . . Impact Corruptions . | . . . . . . . . . . . . . . . . Robots Melted . | . . . . . . . . . . . . . . . . Combat Hostiles . | . . . . . . . . . . . . . . . . Parts Melted 3 | . 2 . . . . . . . 1 . . . . . . Heat Transferred 3111 | . 545 . . 74 666 629 . 420 222 . . 370 185 . . Parts Sabotaged . | . . . . . . . . . . . . . . . . Parts Stolen . | . . . . . . . . . . . . . . . . Parts Stripped . | . . . . . . . . . . . . . . . . Power Chain Reactions . | . . . . . . . . . . . . . . . . Missiles Intercepted . | . . . . . . . . . . . . . . . . Alert | -11 -10 -9 -8 -7 -6 -6 -6 -5 -5 -5 -4 -4 -3 -2 -2 ------- Run | Scr Mat Mat Mat Fac Fac Low Low Fac Upp Upp Fac DSF Res Res Qua Peak Influence 749 | . 193 439 365 242 132 . . 252 . . 39 72 462 749 565 Initial 420 | . . 70 116 77 89 . . . . . 39 27 8 259 420 Average 165 | . 80 243 228 103 88 . . 96 . . 39 27 146 477 480 Maximum Alert Level 3 | . . 2 1 1 . . . 1 . . . . 2 3 2 Low Security (%) 68 | . 100 35 41 94 100 . . 72 . . 100 100 68 . . Level 1 24 | . . 63 58 5 . . . 27 . . . . 28 37 . Level 2 7 | . . 1 . . . . . . . . . . 3 58 100 Level 3 . | . . . . . . . . . . . . . . 3 . Level 4 . | . . . . . . . . . . . . . . . . Level 5 . | . . . . . . . . . . . . . . . . High Security . | . . . . . . . . . . . . . . . . Max Security . | . . . . . . . . . . . . . . . . Squads Dispatched 37 | . 5 2 1 7 2 . . 3 . . . 2 6 7 2 Investigation 11 | . 4 2 1 2 1 . . 1 . . . . . . . Extermination 9 | . . . . 3 . . . 2 . . . . 2 2 . Reinforcement 10 | . 1 . . 2 1 . . . . . . 2 . 2 2 Assault 1 | . . . . . . . . . . . . . 1 . . Garrison 6 | . . . . . . . . . . . . . 3 3 . Intercept . | . . . . . . . . . . . . . . . . Searches Triggered . | . . . . . . . . . . . . . . . . Construction Impeded 1 | . . . . 1 . . . . . . . . . . . Haulers Reinforced 1 | . . . . . . . . . . . . . . 1 . Active Scanning Responses . | . . . . . . . . . . . . . . . . Cargo Convoy Interrupts 1 | . . . . 1 . . . . . . . . . . . Stealth | -11 -10 -9 -8 -7 -6 -6 -6 -5 -5 -5 -4 -4 -3 -2 -2 --------- Run | Scr Mat Mat Mat Fac Fac Low Low Fac Upp Upp Fac DSF Res Res Qua Distress Signals 9 | . 1 3 2 . . . . . . . . . . 3 . Communications Jammed 6 | . . . . . . . . . . . . . . 6 . Distress Signals . | . . . . . . . . . . . . . . . . Times Spotted 226 | . 16 35 14 30 6 7 1 8 14 . . 8 25 50 12 Peak Tracking Total 17 | . 4 5 5 6 4 4 1 2 5 . . 5 5 17 6 Tactical Retreats 23 | . 1 2 1 1 . 2 . . . . . 1 2 13 . Traps | -11 -10 -9 -8 -7 -6 -6 -6 -5 -5 -5 -4 -4 -3 -2 -2 ------- Run | Scr Mat Mat Mat Fac Fac Low Low Fac Upp Upp Fac DSF Res Res Qua Traps Triggered 5 | . 1 . . 1 1 . . 1 . . . . . 1 . Indirectly . | . . . . . . . . . . . . . . . . Trap Hack Attempts . | . . . . . . . . . . . . . . . . Triggered . | . . . . . . . . . . . . . . . . Disarmed . | . . . . . . . . . . . . . . . . Reprogrammed . | . . . . . . . . . . . . . . . . Reused . | . . . . . . . . . . . . . . . . Traps Extracted . | . . . . . . . . . . . . . . . . Installed . | . . . . . . . . . . . . . . . . Triggered 1 | . . . . 1 . . . . . . . . . . . Machines | -11 -10 -9 -8 -7 -6 -6 -6 -5 -5 -5 -4 -4 -3 -2 -2 ---------- Run | Scr Mat Mat Mat Fac Fac Low Low Fac Upp Upp Fac DSF Res Res Qua Machines Disabled 17 | . . 3 2 . . . . 6 . . . 1 3 1 1 Max in Single Turn 4 | . . 1 1 . . . . 4 . . . 1 2 1 1 Garrison Access 2 | . . . . . 1 . . . . . . . 1 . . Machines Sabotaged . | . . . . . . . . . . . . . . . . Garrisons Compromised 1 | . . . . 1 . . . . . . . . . . . Overloaded Fab Kills . | . . . . . . . . . . . . . . . . Hacking | -11 -10 -9 -8 -7 -6 -6 -6 -5 -5 -5 -4 -4 -3 -2 -2 --------- Run | Scr Mat Mat Mat Fac Fac Low Low Fac Upp Upp Fac DSF Res Res Qua Machines Accessed 36 | . 4 5 2 8 3 . 1 6 . 1 1 . 2 3 . Terminals 20 | . 4 5 2 4 1 . . 2 . . 1 . 1 . . Fabricators 9 | . . . . 4 1 . . 3 . . . . . 1 . Repair Stations 1 | . . . . . . . . 1 . . . . . . . Recycling Units . | . . . . . . . . . . . . . . . . Scanalyzers . | . . . . . . . . . . . . . . . . Garrison Access 4 | . . . . . 1 . . . . . . . 1 2 . Total Hacks 91 | . 10 17 9 20 7 . 1 17 . 1 2 . 3 4 . Successful 50 | . 5 10 3 12 4 . 1 12 . 1 1 . 1 . . Failed 41 | . 5 7 6 8 3 . . 5 . . 1 . 2 4 . Catastrophic 5 | . 1 1 . 1 . . . . . . . . . 2 . Database Lockouts . | . . . . . . . . . . . . . . . . Manual 42 | . 5 9 3 14 3 . . 6 . . . . . 2 . Terminals 57 | . 10 17 9 11 2 . . 5 . . 2 . 1 . . Fabricators 23 | . . . . 9 3 . . 10 . . . . . 1 . Repair Stations 2 | . . . . . . . . 2 . . . . . . . Recycling Units . | . . . . . . . . . . . . . . . . Scanalyzers . | . . . . . . . . . . . . . . . . Garrison Access 7 | . . . . . 2 . . . . . . . 2 3 . Terminal Hacks 24 | . 3 7 2 6 . . 1 2 . 1 1 . 1 . . Part Schematic 3 | . . . . 1 . . . 2 . . . . . . . Robot Analysis 5 | . 2 2 . 1 . . . . . . . . . . . Open Door 2 | . . . . . . . 1 . . 1 . . . . . Open DSF 2 | . . . . 1 . . . . . . 1 . . . . Level Access Points 1 | . . . 1 . . . . . . . . . . . . Branch Access Points 1 | . . . . . . . . . . . . . 1 . . Alert Level 5 | . . 3 1 1 . . . . . . . . . . . Unreport Threat 1 | . . 1 . . . . . . . . . . . . . Transport Status 2 | . . 1 . 1 . . . . . . . . . . . Hauler Manifests 1 | . 1 . . . . . . . . . . . . . . Zone Layout 1 | . . . . 1 . . . . . . . . . . . Fabricator Hacks 4 | . . . . 1 1 . . 2 . . . . . . . Network Status 3 | . . . . 1 1 . . 1 . . . . . . . Build 1 | . . . . . . . . 1 . . . . . . . Repair Station Hacks 2 | . . . . . . . . 2 . . . . . . . Scan Component 1 | . . . . . . . . 1 . . . . . . . Repair 1 | . . . . . . . . 1 . . . . . . . Recycling Unit Hacks . | . . . . . . . . . . . . . . . . Scanalyzer . | . . . . . . . . . . . . . . . . Garrison Access Hacks 1 | . . . . . 1 . . . . . . . . . . Seal Access 1 | . . . . . 1 . . . . . . . . . . Unauthorized Hacks 19 | . 2 3 1 5 2 . . 6 . . . . . . . Terminals 10 | . 2 3 1 2 1 . . 1 . . . . . . . Track 1 | . 1 . . . . . . . . . . . . . . Botnet 9 | . 1 3 1 2 1 . . 1 . . . . . . . Fabricators 9 | . . . . 3 1 . . 5 . . . . . . . Report 1 | . . . . . . . . 1 . . . . . . . Fabnet 7 | . . . . 3 1 . . 3 . . . . . . . Haulers 1 | . . . . . . . . 1 . . . . . . . Repair Stations . | . . . . . . . . . . . . . . . . Recycling Units . | . . . . . . . . . . . . . . . . Scanalyzers . | . . . . . . . . . . . . . . . . Garrison Access . | . . . . . . . . . . . . . . . . Data Cores Recovered 3 | . . . 1 1 . . . . . . . . . 1 . Used 1 | . . . 1 . . . . . . . . . . . . Hacking Detections 27 | . 3 4 2 6 2 . . 5 . . 1 . 1 3 . Full Trace Events 9 | . 3 3 1 1 1 . . . . . . . . . . Feedback Events 1 | . . 1 . . . . . . . . . . . . . Corruption 1 | . . 1 . . . . . . . . . . . . . Feedback Blocked . | . . . . . . . . . . . . . . . . Robot Schematics Acquired 1 | . . . . . . . . . . . . . . . 1 Robots Built . | . . . . . . . . . . . . . . . . Authchips . | . . . . . . . . . . . . . . . . Time . | . . . . . . . . . . . . . . . . Total Robot Build Rating . | . . . . . . . . . . . . . . . . Part Schematics Acquired 7 | . . . . 1 . . . 2 . . . . . . 4 Parts Built 1 | . . . . . . . . 1 . . . . . . . Authchips . | . . . . . . . . . . . . . . . . Time 204 | . . . . . . . . 204 . . . . . . . Total Part Build Rating 8 | . . . . . . . . 8 . . . . . . . Parts Repaired 1 | . . . . . . . . 1 . . . . . . . Time 44 | . . . . . . . . 44 . . . . . . . Parts Recycled . | . . . . . . . . . . . . . . . . Recycled Matter . | . . . . . . . . . . . . . . . . Retrieved Matter . | . . . . . . . . . . . . . . . . Retrieved Components . | . . . . . . . . . . . . . . . . Parts Scanalyzed . | . . . . . . . . . . . . . . . . Part Schematics Acquired . | . . . . . . . . . . . . . . . . Parts Damaged . | . . . . . . . . . . . . . . . . Bothacking | -11 -10 -9 -8 -7 -6 -6 -6 -5 -5 -5 -4 -4 -3 -2 -2 ------------ Run | Scr Mat Mat Mat Fac Fac Low Low Fac Upp Upp Fac DSF Res Res Qua Used RIF Installer . | . . . . . . . . . . . . . . . . Robots Hacked 5 | . . . . . . . 2 . 3 . . . . . . Non-combat . | . . . . . . . . . . . . . . . . Combat 5 | . . . . . . . 2 . 3 . . . . . . Robot Hacks Applied . | . . . . . . . . . . . . . . . . Relay Couplers Released 2 | . . . . . . . . . . . . . 2 . . Machine Destruction 2 | . . . . . . . . . . . . . 2 . . Fabnet Peak Effective % 7 | . . . . . 6 6 6 5 5 5 7 7 2 . . Autooverrided 5 | . . . . . . . 2 . 3 . . . . . . Robots Rewired . | . . . . . . . . . . . . . . . . Allies Hacked . | . . . . . . . . . . . . . . . . Hacks Repelled . | . . . . . . . . . . . . . . . . Allies | -11 -10 -9 -8 -7 -6 -6 -6 -5 -5 -5 -4 -4 -3 -2 -2 -------- Run | Scr Mat Mat Mat Fac Fac Low Low Fac Upp Upp Fac DSF Res Res Qua Total Allies 5 | . . . . . . . 2 . 3 . . . . . . Largest Group 2 | . . . . . . . 2 . 2 . . . . . . Highest-Rated Group 76 | . . . . . . . 49 . 76 . . . . . . Highest-Rated Ally 47 | . . . . . . . 37 . 47 . . . . . . Total Orders 2 | . . . . . . . . . . . . . 2 . . EXPLORE 1 | . . . . . . . . . . . . . 1 . . RETURN 1 | . . . . . . . . . . . . . 1 . . Ally Attacks 14 | . . . . . . . 4 . 10 . . . . . . Total Damage 335 | . . . . . . . 80 . 255 . . . . . . Kills 2 | . . . . . . . . . 2 . . . . . . Allies Corrupted . | . . . . . . . . . . . . . . . . Allies Melted . | . . . . . . . . . . . . . . . . Intel | -11 -10 -9 -8 -7 -6 -6 -6 -5 -5 -5 -4 -4 -3 -2 -2 ------- Run | Scr Mat Mat Mat Fac Fac Low Low Fac Upp Upp Fac DSF Res Res Qua Robot Analysis Total 5 | . 2 2 . 1 . . . . . . . . . . . Derelict Logs Recovered 2 | . . . . . . 1 . . . 1 . . . . . Drone Launches 1 | . . . . . . . . . . . . . 1 . . Drone Recoveries 1 | . . . . . . . . . . . . . 1 . . Exploration | -11 -10 -9 -8 -7 -6 -6 -6 -5 -5 -5 -4 -4 -3 -2 -2 ------------- Run | Scr Mat Mat Mat Fac Fac Low Low Fac Upp Upp Fac DSF Res Res Qua Turns Passed 12014 | . 798 1136 596 1893 698 2433 374 1219 705 153 47 103 1097 540 222 Spaces Moved 7038 | 1 486 630 250 1034 227 979 196 643 526 127 39 34 755 1021 90 Core 6 | . . . . . . . . . . . . . 5 . 1 Treads 782 | . . . . 3 37 348 . . . . . 20 309 . 65 Legs 1262 | 1 272 . . . . . . 283 526 127 39 14 . . . Wheels 3502 | . 214 630 250 1031 190 631 196 360 . . . . . . . Hover 1 | . . . . . . . . . . . . . . 1 . Flight 1485 | . . . . . . . . . . . . . 441 1020 24 Fastest Speed 20 | 120 120 140 145 145 230 190 190 120 120 120 120 120 29 20 22 Average Speed 139 | 120 128 143 145 152 253 236 190 168 120 120 120 145 89 32 115 Slowest Speed 570 | 120 140 145 145 330 570 325 190 260 120 120 120 240 240 150 200 Overloaded Moves . | . . . . . . . . . . . . . . . . Propulsion Burnouts . | . . . . . . . . . . . . . . . . Robots Hopped 14 | . . . . . . . . . . . . . 1 13 . Cave-ins Triggered 1 | . . . 1 . . . . . . . . . . . . Exploration Rate (%) 29 | 2 78 48 21 27 5 89 23 10 70 14 1 41 15 26 9 Regions Visited 15 Branch Regions 5 Pre-discovered Areas . | . . . . . . . . . . . . . . . . Known Exits Taken 3 | . . 1 1 . . . . . . . 1 . . . . Unknown Exits Taken 11 | 1 1 . . 1 1 1 1 1 1 1 . . 1 1 . Scrap Searched 10 | . . . . . . 8 . . 1 1 . . . . . Spaces Dug 92 | . . . 8 1 6 25 . . 3 . . . 20 29 . Terrain Destroyed 219 | . . 7 18 1 8 27 . 69 11 . . . 38 40 . Melee 36 | . . . 1 1 6 2 . . . . . . 8 18 . Projectile 73 | . . 7 17 . 2 2 . 16 11 . . . 18 . . AOE 110 | . . . . . . 23 . 53 . . . . 12 22 . Terrain Rammed . | . . . . . . . . . . . . . . . . Walls Destroyed . | . . . . . . . . . . . . . . . . Machines Disabled . | . . . . . . . . . . . . . . . . Actions | -11 -10 -9 -8 -7 -6 -6 -6 -5 -5 -5 -4 -4 -3 -2 -2 --------- Run | Scr Mat Mat Mat Fac Fac Low Low Fac Upp Upp Fac DSF Res Res Qua Total 8285 | . 603 757 356 1210 286 1033 200 748 574 128 39 66 1025 1106 154 Wait 458 | . 64 35 34 40 13 10 . 63 33 . . 5 136 15 10 Move 6997 | . 485 629 248 1033 226 978 195 642 525 126 38 33 752 997 90 Hop 11 | . . . . . . . . . . . . . 1 10 . Pick Up 71 | . 8 19 3 17 1 3 2 . . 1 . 2 15 . . Fast Attach 89 | . 3 1 . 11 1 5 . 12 1 . . 3 31 16 5 Attach 46 | . . 4 5 5 3 2 . 3 . . 1 3 12 4 4 Detach 20 | . . 2 . 2 . 1 . 3 . . . 3 4 4 1 Swap 27 | . 7 3 1 6 4 2 1 2 1 . . . . . . Drop 63 | . 7 8 . 22 . . 2 7 1 1 . 5 8 1 1 Fire 369 | . 28 56 63 69 24 30 . 16 13 . . 12 53 4 1 Melee 104 | . . . 1 2 6 2 . . . . . . 13 55 25 Ram 2 | . . . . 2 . . . . . . . . . . . Kick 1 | . 1 . . . . . . . . . . . . . . Crush 1 | . . . . 1 . . . . . . . . . . . Escape Stasis 26 | . . . 1 . 8 . . . . . . . . . 17 Rewire . | . . . . . . . . . . . . . . . . Trap . | . . . . . . . . . . . . . . . . Miscellaneous . | . . . . . . . . . . . . . . . . Route ------- -11/Scrapyard -10/Materials (discovered 4 exits: *Mat x3 / [*Min]) -9/Materials (discovered 2 exits: *Mat / *Sto) -8/Materials (discovered 3 exits: *Fac x3) -7/Factory (discovered 2 exits: *Fac / [*Low]) -6/Factory -6/Lower Caves -6/Lower Caves -5/Factory -5/Upper Caves -5/Upper Caves -4/Factory -4/DSF -3/Research (discovered 4 exits: *Res / Arm / Tes x2) -2/Research -2/Quarantine History --------- Turn | Location | Event 1 | -11/Scrapyard | Discovered new exit (range 0) 1 | -11/Scrapyard | Entered Materials 300 | -10/Materials | Build established: Mutant 352 | -10/Materials | Discovered new exit (range 12) 490 | -10/Materials | Discovered new exit (range 5) 658 | -10/Materials | Discovered new exit (range 15) 775 | -10/Materials | Discovered new exit (range 13) 799 | -10/Materials | Entered another Materials area 799 | -9/Materials | Evolved 2 slots: Propulsion x1, Utility x1 1202 | -9/Materials | Discovered new exit (range 6) 1283 | -9/Materials | Identified exit to Storage 1572 | -9/Materials | Discovered new exit (range 12) 1587 | -9/Materials | Identified exit to Materials 1935 | -9/Materials | Entered another Materials area 1935 | -8/Materials | Evolved 2 slots: Propulsion x1, Utility x1 2179 | -8/Materials | Identified exit to Factory 2468 | -8/Materials | Crushed by falling debris 2531 | -8/Materials | Entered Factory 2531 | -7/Factory | Evolved 2 slots: Utility x1, Weapon x1 2865 | -7/Factory | Build established: Tank 3813 | -7/Factory | Discovered new exit (range 13) 3813 | -7/Factory | Discovered new exit (range 19) 4103 | -7/Factory | Destroyed 7 combat bots 4250 | -7/Factory | Cargo convoy interrupted 4424 | -7/Factory | Entered another Factory area 4424 | -6/Factory | Evolved 2 slots: Propulsion x1, Utility x1 4849 | -6/Factory | Build established: Hacker-Mutant 4914 | -6/Factory | Discovered new exit (range 11) 5013 | -6/Factory | Lost 3 parts (3n) 5122 | -6/Factory | Entered Lower Caves 5180 | -6/Lower Caves | Build established: Hacker-Tank 5984 | -6/Lower Caves | Build established: Hacker-Skirmisher 6463 | -6/Lower Caves | Spotted B-75 Beast 7466 | -6/Lower Caves | Build established: Hacker-Mutant 7492 | -6/Lower Caves | Encountered a Warlord checkpoint 7495 | -6/Lower Caves | Discovered new exit (range 15) 7506 | -6/Lower Caves | Learned Factory terminal intel 7555 | -6/Lower Caves | Entered another Lower Caves area 7854 | -6/Lower Caves | Discovered new exit (range 12) 7929 | -6/Lower Caves | Entered Factory 7929 | -5/Factory | Evolved 2 slots: Utility x2 7930 | -5/Factory | Loaded intel: 26 terminal locations 8375 | -5/Factory | Fabricated Exp. Terrain Scanner (x1) 8387 | -5/Factory | Discovered new exit (range 4) 8715 | -5/Factory | Build established: Hacker-Tank 8918 | -5/Factory | Repaired Tri-rail Accelerator 9148 | -5/Factory | Entered Upper Caves 9234 | -5/Upper Caves | Attracted the attention of an 0b10 checkpoint 9469 | -5/Upper Caves | Attracted the attention of an 0b10 base 9841 | -5/Upper Caves | Discovered new exit (range 11) 9853 | -5/Upper Caves | Entered another Upper Caves area 9922 | -5/Upper Caves | Learned Factory stockpile data 9993 | -5/Upper Caves | Discovered new exit (range 3) 10006 | -5/Upper Caves | Entered Factory 10006 | -4/Factory | Evolved 2 slots: Propulsion x1, Utility x1 10052 | -4/Factory | Identified exit to DSF 10053 | -4/Factory | Entered DSF 10070 | -4/DSF | Additional patrols routed to DSF 10133 | -4/DSF | Discovered new exit (range 14) 10156 | -4/DSF | Entered Research 10156 | -3/Research | Evolved 2 slots: Utility x1, Weapon x1 10175 | -3/Research | Lost 12 parts (2p1n7u2w) 10400 | -3/Research | Build established: Mutant 10512 | -3/Research | Found Enh. Force Lance 10514 | -3/Research | Found Enh. Force Lance 10518 | -3/Research | Found Enh. Force Lance 10763 | -3/Research | Garrison activated, responded to threat 10993 | -3/Research | Released all parts (17) 11091 | -3/Research | Spotted B-86 Titan 11207 | -3/Research | Discovered new exit (range 15) 11226 | -3/Research | Identified exit to Armory 11226 | -3/Research | Identified exit to Testing 11253 | -3/Research | Entered another Research area 11253 | -2/Research | Evolved 2 slots: Power x1, Propulsion x1 11312 | -2/Research | Spotted B-90 Cyclops 11603 | -2/Research | Spotted B-90 Cyclops 11659 | -2/Research | Garrison activated, responded to threat 11726 | -2/Research | Garrison activated, responded to threat 11727 | -2/Research | Lost 11 parts (2p8u1w) 11773 | -2/Research | Core integrity fell below 50% 11790 | -2/Research | Discovered new exit (range 16) 11793 | -2/Research | Entered Quarantine 11804 | -2/Quarantine | Lost 8 parts (1p4n1u2w) 11863 | -2/Quarantine | Scanned by Researcher 11870 | -2/Quarantine | Found Alien Slashing Weapon 11870 | -2/Quarantine | Identified Sigix Broadsword 11981 | -2/Quarantine | Core integrity fell below 20% 12015 | -2/Quarantine | Destroyed by H-88 Terminator with KE Penetrator Last Messages --------------- 12002_ Arm. Heavy Treads destroyed. 12005_ Held in stasis. 12005_ C-65 Expert is analyzing... 12005_ Penetrated by Slug. 12005_ K-01 Serf collects debris. 12005_ Penetrated by Slug. 12009_ Slug penetrates Wall. 12009_ Penetrated by Slug. 12009_ Held in stasis. 12009_ C-65 Expert is analyzing... 12011_ Slug penetrates Wall. 12011_ C-65 Expert suffers critical hit (Destroy). 12011_ K-01 Serf collects debris. 12012_ Penetrated by Slug. 12012_ Biometal Heavy Treads destroyed. 12014_ Mak. Spear follow-up attack on H-88 Terminator. 12014_ Slug penetrates H-88 Terminator. 12014_ Penetrated by Slug. 12014_ K-01 Serf collects debris. 12015_ Penetrated by Slug. Map ----- +----------------------------------------------------+ | ?????????????????????????????????????????????????? | | ?????????????????????????????????????????????????? | | ?????????????????????????????????????????????????? | | ?????????????????????????????????????????????????? | | ?????????????????????????????????????????????????? | | ?????????????????????????????????????????????????? | | ?????????????????????????????????????????????????? | | ?????????????????????????????????????????????????? | | ?????????????????????????????????????????????????? | | ?????????????????????????????????????????????????? | | ?????????????????????????????????????????????????? | | ?????????????????????????????????????????????????? | | ?????????????????????????????????????????????????? | | ?????????????????????????????????????????????????? | | ?????????????????????????????????????????????????? | | ?????????????????????????????????????????????????? | | ?????????????????????????????????????????????????? | | ???????????????????#########?????????????????????? | | ???????????????????#!!"""!!#?????????????????????? | | ???????????????????#!"" ""!#?????????????????????? | | ???????????????????#"" !""#?????????????????????? | | ???????????????????#" [= #?????????????????????? | | ???????????????????# =[*%%#?????????????????????? | | ???????????????????# %*[ck#?????????????????????? | | ?????????????############/##?????????????????????? | | ?????????? !!!@=#?????????????????????? | | ?????????? w !=!hh#?????????????????????? | | ?????????? """ """=%######## #?????????? | | ??????????? """ """==% ??????? | | ???????????????# """ """ [######## ??????? | | ???????????????# # #??????????????? | | ?????########### """ """ # #??????????????? | | ?????# """ """ + #??????????????? | | ?????# """ """ # #??????????????? | | ?????# + #??????????????? | | ?????# # #??????????????? | | ?????####+################ # #??????????????? | | ?????# #??????????# # #??????????????? | | ?????#"" """ #??????????# # "" #??????????????? | | ?????#"" """ #??????????# #= """ #??????????????? | | ?????#"" """ ############ # " #??????????????? | | ?????#S + # """ #??????????????? | | ?????#"" """ #########+#### | "" #??????????????? | | ?????#"" """ #??# ^ # #??????????????? | | ?????#"" """ =#??# ########??????????????? | | ?????? #??# ^ #?????????????????????? | | ??????#########??# = #?????????????????????? | | ?????????????????###########?????????????????????? | | | | | +----------------------------------------------------+ Best States ------------- Heat Dissipation 84 Energy Generation 30 Energy Capacity 490 Matter Stores 300 Matter Capacity 300 Sight Range 20 Robot Scan Range 15 Terrain Scan Range 30 Terrain Scan Density 10 Jamming Range 16 Power Amplification 40 Additional Mass Support 6 Armor Coverage 450 Resistance: KI 20 Melee Speed Boost 30 Evasion (%) 76 Targeting Accuracy 8 Target Analysis 12 Recoil Reduction 12 Offensive Hacking 21 Item Schematics ----------------- Plasma Rifle | -7/Factory | Hacked Imp. Weapon Cycler | -5/Factory | Hacked Hardcell Cannon | -5/Factory | Hacked Imp. Q-thruster | -2/Quarantine | Archive Adv. Thermal Defense Suite | -2/Quarantine | Archive Exp. Transmission Jammer | -2/Quarantine | Archive Tesla Bomb Launcher | -2/Quarantine | Archive Robot Schematics ------------------ R-06 Scavenger | -2/Quarantine | Archive Fabricated ------------ Exp. Terrain Scanner | x1 | -5/Factory | Preloaded Alien Tech Used ----------------- Sigix Broadsword Achievements -------------- None Challenges ------------ None Game ------ Seed SuperchargedLinearDrive Manual? 0 Play Time 01:34:15 Cumulative 244.2 hours Start 2022.05.21 @ 20:38:51 End 2022.05.21 @ 22:39:23 Sessions 1 Manual Loads 0 Difficulty Rogue Special Mode None Game No. 333 Rogue 333 Adventurer 0 Explorer 0 Win Type - Total 4 Types 3/0/0/1/0/0/0/0/0 Lore% 65 Gallery% 77 Achievement% 57 Wizard Run 0 Options --------- ASCII 0 Keyboard 1 Movement Vi Keybinds 0 Fullscreen 1 Font 18/SmallcapsGlow Map View 76x50 Tactical HUD 1 Map Filters NONE Filters NONE Steam 1 RUN: 1beca274-d159-4108-9846-9c05848ec29c